bitfinex/quotes_ETHUSD_20260130
["timestamp","ask_amount","ask_price","bid_price","bid_amount"]
[1769755839692,0.4929047,2717.4,2716.3,13.6693228]
[1769755839896,3.895564,2717.5,2716.3,13.6693228]
[1769755840097,0.1024,2717.6,2716.3,13.6693228]
[1769755840392,3.67858723,2718.5,2716.3,13.6693228]
[1769755840393,15.090336,2718.6,2716.3,13.6693228]
[1769755840593,10.167813,2718.6,2716.3,13.6693228]
[1769755840794,0.1024,2718.3,2716.3,13.6693228]
[1769755841101,20.369877,2719.0,2716.5,13.7173228]
[1769755841298,0.1024,2718.7,2716.5,13.7173228]
[1769755841500,0.1024,2718.5,2716.5,13.7173228]
[1769755841698,10.917083,2718.2,2716.5,13.7173228]
[1769755841993,10.115482,2718.2,2716.5,13.7173228]
[1769755842195,0.1024,2718.3,2716.7,13.7173228]
[1769755842196,1.0217882,2718.1,2716.7,13.7173228]
[1769755842372,9.158382,2718.2,2716.7,13.7173228]
[1769755842781,5.725339,2718.2,2716.7,13.7173228]
[1769755843700,5.726339,2718.2,2716.7,13.7173228]
[1769755843898,4.278364,2718.1,2716.7,13.7173228]
[1769755844714,0.001,2718.2,2716.7,13.7173228]
[1769755844872,0.001,2718.2,2716.9,13.7173228]
[1769755847805,0.001,2718.2,2716.5,0.002]
[1769755847806,20.433697,2718.0,2716.5,0.002]
[1769755847969,0.1024,2718.0,2716.5,13.7193228]
[1769755848171,4.897526,2717.7,2716.5,13.7193228]
[1769755848403,4.602526,2717.6,2716.5,15.09145508]
[1769755848996,3.314005,2717.6,2716.5,15.09145508]
[1769755849712,0.4999926,2717.7,2716.5,15.09145508]
[1769755849891,0.1024,2718.0,2716.5,15.09145508]
[1769755851611,3.67799215,2718.9,2716.5,15.09145508]
[1769755851612,2.317756,2718.1,2716.5,15.09145508]
[1769755851782,1.02199133,2718.6,2716.5,15.09145508]
[1769755851973,7.09065631,2719.0,2716.5,15.09145508]
[1769755852174,1.10547523,2724.8,2716.5,15.09145508]
[1769755852175,6.17117567,2719.8,2716.7,13.7173228]
[1769755852388,0.91931112,2719.5,2716.7,13.7173228]
[1769755852591,0.1024,2719.3,2716.7,13.7173228]
[1769755852817,0.91921903,2719.7,2716.7,13.7173228]
[1769755852976,0.91921903,2719.7,2716.8,13.7173228]
[1769755853181,0.1024,2719.6,2717.0,13.7173228]
[1769755853406,6.001973,2719.7,2717.1,13.7173228]
[1769755853605,0.1024,2719.6,2717.1,13.7173228]
[1769755853835,12.434182,2719.7,2717.1,13.7173228]
[1769755854139,0.1024,2719.6,2717.1,13.7173228]
[1769755854300,4.766773,2719.3,2717.3,13.7173228]
[1769755854505,4.766773,2719.3,2717.5,13.7173228]
[1769755854903,7.09123445,2720.2,2717.5,13.7173228]
[1769755855239,8.339835,2719.9,2717.5,13.7173228]
[1769755855412,6.850566,2719.9,2717.5,13.7173228]
[1769755855607,2.916985,2719.6,2717.7,13.7173228]
[1769755855807,3.540896,2719.6,2717.7,13.7173228]
[1769755856003,0.1024,2719.5,2717.7,13.7173228]
[1769755856311,5.720682,2719.2,2717.7,13.7173228]
[1769755856810,0.1034,2719.3,2717.7,13.7173228]
[1769755857005,0.1034,2719.3,2717.9,13.8954675]
[1769755857430,0.001,2719.3,2717.9,13.8954675]
[1769755857758,0.001,2719.3,2717.5,13.8954675]
[1769755857759,0.1024,2719.1,2717.5,13.8954675]
[1769755857909,27.256585,2719.0,2717.0,13.8954675]
[1769755858109,16.608639,2719.0,2717.1,1.65211225]
[1769755858437,11.391424,2719.0,2717.1,15.54757975]
[1769755858639,5.77236,2719.0,2717.1,15.54757975]
[1769755858844,7.793008,2718.7,2717.1,15.54757975]
[1769755859045,0.7895408,2718.6,2717.3,13.8954675]
[1769755859245,0.1024,2718.8,2717.3,13.8954675]
[1769755859246,15.148518,2718.7,2717.3,13.8954675]
[1769755859542,12.375713,2718.7,2717.3,13.8954675]
[1769755860646,0.1024,2719.0,2717.3,13.8954675]
[1769755860834,8.111576,2718.7,2717.3,13.8954675]
[1769755861151,0.1024,2718.4,2716.5,0.002]
[1769755861351,0.4725675,2718.3,2716.6,15.3456675]
[1769755861643,5.633426,2718.3,2716.6,15.3456675]
[1769755861850,0.91952879,2718.8,2716.5,13.8974675]
[1769755861851,0.1024,2718.0,2716.5,13.8974675]
[1769755862014,3.226541,2717.9,2716.5,13.8974675]
[1769755863424,14.118813,2717.7,2716.5,13.8974675]
[1769755863621,14.118813,2717.7,2716.5,0.002]
[1769755863622,0.1024,2717.6,2716.5,0.002]
[1769755863815,12.944499,2717.5,2716.5,0.002]
[1769755864214,11.944609,2717.5,2716.5,0.002]
[1769755864447,0.91984538,2717.9,2716.3,0.774]
[1769755864448,0.1024,2717.2,2716.3,0.774]
[1769755864820,0.1024,2717.2,2715.8,0.002]
[1769755864821,0.1024,2717.0,2715.8,0.002]
[1769755865155,0.7554714,2716.9,2715.8,0.002]
[1769755865317,2.880268,2716.9,2715.8,0.002]
[1769755865738,22.626432,2716.9,2715.8,0.002]
[1769755865956,10.614118,2716.7,2715.1,13.8954675]
[1769755866157,10.614118,2716.7,2714.8,0.772]
[1769755866158,10.300118,2716.7,2715.2,13.8974675]
[1769755866378,0.1024,2716.8,2715.2,13.8974675]
[1769755866670,0.1024,2716.8,2715.4,13.8954675]
[1769755866835,4.024184,2717.1,2715.4,13.8954675]
[1769755867039,0.1024,2717.6,2715.4,13.8954675]
[1769755867261,2.635105,2718.2,2715.4,14.81613084]
[1769755867471,2.499389,2718.2,2715.5,13.8954675]
[1769755867770,0.001,2717.5,2715.7,13.8954675]
[1769755868640,0.001,2717.5,2715.9,13.8954675]
[1769755869667,0.001,2717.5,2716.1,13.8954675]
[1769755871056,0.001,2717.5,2716.1,14.81589291]
[1769755871777,0.001,2717.5,2716.1,13.8954675]
[1769755871962,0.1024,2718.7,2716.3,13.8954675]
[1769755872163,0.1024,2718.8,2716.5,13.8954675]
[1769755872955,2.453841,2719.2,2716.7,13.8954675]
[1769755873164,0.1024,2718.9,2716.9,13.8954675]
[1769755873574,0.1024,2718.5,2716.9,13.8954675]
[1769755873777,0.1024,2718.5,2717.0,14.6674675]
[1769755873973,0.1024,2719.1,2717.0,14.6674675]
[1769755874182,5.898542,2719.0,2717.0,14.6674675]
[1769755874360,0.1024,2718.6,2717.1,15.36221425]
[1769755874763,11.765364,2718.5,2717.1,15.36221425]
[1769755874962,3.427894,2718.5,2717.1,15.36221425]
[1769755875168,0.1024,2718.6,2717.1,15.36221425]
[1769755875481,2.910821,2718.5,2717.1,15.36221425]
[1769755875686,0.1024,2718.6,2717.1,15.36221425]
[1769755875687,0.3013221,2718.4,2717.1,15.36221425]
[1769755875889,17.883848,2718.2,2716.6,14.6674675]
[1769755876184,9.526756,2718.2,2716.6,14.6674675]
[1769755876550,0.1024,2718.3,2716.6,14.6674675]
[1769755876791,0.1024,2718.1,2716.8,13.8954675]
[1769755876953,0.91959775,2718.6,2716.8,13.8954675]
[1769755876954,0.1024,2718.4,2716.8,13.8954675]
[1769755877152,5.77687,2718.1,2716.8,13.8954675]
[1769755877360,5.77687,2718.1,2716.6,0.772]
[1769755878180,5.127033,2718.1,2716.6,0.772]
[1769755878390,5.127033,2718.1,2716.4,13.8954675]
[1769755878391,0.6253433,2718.0,2716.4,13.8954675]
[1769755878565,0.1024,2717.6,2716.0,13.8954675]
[1769755878770,7.578659,2717.3,2716.0,13.8954675]
[1769755878987,2.630464,2717.1,2716.0,13.8954675]
[1769755879293,0.1024,2717.9,2716.0,13.8954675]
[1769755879588,5.717405,2717.6,2716.0,13.8954675]
[1769755880091,0.1024,2717.7,2716.0,13.8954675]
[1769755880780,0.1034,2718.1,2716.0,13.8954675]
[1769755880983,0.1024,2717.8,2716.2,13.8954675]
[1769755881397,0.001,2718.1,2716.2,14.81586114]
[1769755881555,0.001,2718.1,2716.3,13.8954675]
[1769755882256,0.001,2718.1,2716.2,4.81939364]
[1769755882257,0.001,2718.1,2716.5,13.8954675]
[1769755882660,6.17678,2718.0,2716.5,13.8954675]
[1769755882889,0.001,2718.1,2716.5,14.6674675]
[1769755882890,0.617778,2717.9,2716.5,14.6674675]
[1769755883188,4.111205,2717.8,2716.5,14.6674675]
[1769755883388,0.1024,2717.9,2716.5,14.6674675]
[1769755883780,0.001,2718.1,2716.5,14.6674675]
[1769755884278,6.791886,2718.0,2716.5,14.6674675]
[1769755884456,5.627889,2718.0,2716.5,14.6674675]
[1769755884662,3.111611,2717.8,2716.5,14.6674675]
[1769755884862,3.133946,2717.8,2716.5,14.6674675]
[1769755885363,2.21338,2717.8,2716.5,14.6674675]
[1769755885574,5.21998833,2718.0,2716.5,13.8954675]
[1769755885778,19.380115,2717.9,2716.3,0.772]
[1769755886065,4.961907,2717.4,2716.3,0.772]
[1769755886255,2.929907,2717.4,2716.3,0.772]
[1769755886453,0.52209883,2717.9,2716.3,0.772]
[1769755886454,5.571375,2717.6,2716.3,0.772]
[1769755886657,5.571375,2717.6,2716.3,14.0666742]
[1769755886658,3.032175,2717.6,2716.3,14.0666742]
[1769755886888,0.3134575,2717.5,2716.3,15.47334162]
[1769755887056,0.1024,2717.9,2716.3,15.47334162]
[1769755887657,0.001,2718.1,2716.3,15.47334162]
[1769755887858,0.001,2718.1,2716.6,13.2946742]
[1769755888277,0.001,2718.1,2716.8,13.2946742]
[1769755891999,0.001,2717.7,2716.8,13.2946742]
[1769755892202,0.001,2717.7,2717.0,13.2946742]
[1769755894092,0.001,2717.7,2717.1,0.772]
[1769755894803,0.001,2717.7,2717.1,14.0666742]
[1769755898297,0.1024,2719.0,2717.1,14.0666742]
[1769755898298,6.42,2719.2,2717.3,13.300528]
[1769755898506,10.85075082,2719.4,2717.3,13.300528]
[1769755898507,0.58075082,2719.4,2717.6,13.300528]
[1769755898708,0.58075082,2719.4,2717.9,13.300528]
[1769755898911,0.58075082,2719.4,2718.0,13.300528]
[1769755901206,0.58075082,2719.4,2717.4,5.4456231]
[1769755901207,0.58075082,2719.4,2718.2,13.300528]
[1769755901521,0.58075082,2719.4,2718.3,0.87517022]
[1769755901694,0.58075082,2719.4,2718.1,0.772]
[1769755903221,0.58075082,2719.4,2718.2,13.300528]
[1769755904222,0.001,2719.1,2718.2,13.300528]
[1769755904629,0.001,2719.1,2718.3,0.771]
[1769755905125,0.001,2719.1,2717.4,13.300528]
[1769755905325,0.001,2719.1,2717.6,13.300528]
[1769755905536,0.001,2719.1,2717.8,13.300528]
[1769755908043,6.1732544,2721.0,2718.1,13.300528]
[1769755908228,5.169241,2720.9,2718.1,13.300528]
[1769755908433,0.1024,2720.8,2718.1,13.300528]
[1769755908618,0.62756544,2720.8,2718.3,13.300528]
[1769755908819,3.763872,2720.7,2718.3,13.300528]
[1769755909143,0.1024,2720.7,2718.3,13.300528]
[1769755910017,2.102319,2720.6,2718.3,14.2202111]
[1769755910440,0.1024,2720.7,2718.3,14.2202111]
[1769755910640,15.505184,2721.0,2718.5,13.300528]
[1769755910828,15.505184,2721.0,2718.7,13.300528]
[1769755911340,0.1024,2720.8,2718.7,13.300528]
[1769755911509,0.1024,2720.6,2718.7,13.300528]
[1769755911710,2.599627,2720.5,2718.7,13.300528]
[1769755911915,0.2702027,2720.4,2718.9,13.300528]
[1769755912129,0.1024,2720.6,2718.9,13.300528]
[1769755913213,5.705004,2720.5,2718.9,13.300528]
[1769755913513,5.3712,2720.5,2718.9,13.300528]
[1769755913719,4.05249,2720.5,2718.9,13.300528]
[1769755914519,3.350116,2720.5,2718.9,13.300528]
[1769755914719,0.1024,2720.6,2719.0,14.76358608]
[1769755914720,0.3452516,2720.4,2719.0,14.76358608]
[1769755915062,3.350116,2720.5,2719.0,14.76358608]
[1769755916750,0.1024,2720.6,2719.0,14.76358608]
[1769755917123,2.264,2720.5,2719.0,14.76358608]
[1769755918053,0.001,2720.5,2719.0,14.76358608]
[1769755919447,0.001,2720.5,2719.0,15.68304051]
[1769755919758,0.001,2720.5,2719.2,13.72283535]
[1769755919958,0.001,2720.5,2719.4,13.72283535]
[1769755920831,0.001,2720.5,2719.5,13.72283535]
[1769755921041,3.25782,2721.8,2719.6,13.72283535]
[1769755921246,0.1024,2721.7,2719.6,13.72283535]
[1769755921470,0.1024,2721.5,2719.8,13.72283535]
[1769755921642,0.1024,2721.7,2719.8,13.72283535]
[1769755921841,0.1024,2721.8,2719.8,13.72283535]
[1769755922175,2.936702,2721.3,2719.9,0.771]
[1769755922345,13.80211412,2721.2,2719.9,0.771]
[1769755922544,2.351328,2721.1,2719.9,0.771]
[1769755922773,6.64246712,2721.6,2720.0,0.771]
[1769755922774,2.314502,2721.2,2720.0,0.771]
[1769755923069,2.014502,2721.2,2720.0,0.771]
[1769755923670,8.65696912,2721.2,2720.0,0.771]
[1769755923977,6.74486712,2721.8,2720.0,14.49383535]
[1769755924173,3.402259,2721.5,2720.0,14.49383535]
[1769755925469,10.04472612,2721.5,2720.1,0.771]
[1769755925671,4.132,2721.2,2720.1,0.771]
[1769755925875,2.336728,2721.2,2720.1,0.771]
[1769755926646,0.1024,2721.6,2720.1,14.49383535]
[1769755926855,0.1024,2721.6,2720.2,15.17221889]
[1769755927053,0.70542758,2721.7,2720.2,15.17221889]
[1769755927260,0.30940868,2721.9,2720.4,13.72283535]
[1769755927869,20.143183,2722.8,2720.4,13.72283535]
[1769755928045,0.1024,2722.6,2720.4,13.72283535]
[1769755928362,14.857171,2722.6,2720.4,13.72283535]
[1769755928591,2.462005,2722.4,2720.4,13.72283535]
[1769755928880,0.1024,2722.5,2720.6,13.72283535]
[1769755928881,0.2564405,2722.3,2720.6,13.72283535]
[1769755929091,0.00210824,2723.1,2720.6,13.72283535]
[1769755929389,0.1024,2722.9,2720.6,13.72283535]
[1769755929680,4.844957,2722.6,2720.6,13.72283535]
[1769755930382,0.001,2722.2,2720.6,13.72283535]
[1769755930557,0.001,2722.2,2720.8,13.72283535]
[1769755930895,0.001,2722.2,2721.0,13.72283535]
[1769755931263,4.886321,2722.0,2720.3,13.72283535]
[1769755931498,0.1024,2721.7,2720.3,13.72283535]
[1769755931661,5.860817,2721.6,2720.2,0.773]
[1769755931992,5.057022,2721.4,2720.2,0.773]
[1769755932487,0.5963217,2721.5,2720.2,0.773]
[1769755932658,2.964148,2721.6,2720.2,0.773]
[1769755933000,0.001,2722.2,2720.3,13.72283535]
[1769755933208,0.001,2722.2,2720.5,13.72283535]
[1769755933369,0.001,2722.2,2720.5,14.64176355]
[1769755933581,0.001,2722.2,2720.5,13.72283535]
[1769755933781,0.001,2722.2,2720.7,13.72283535]
[1769755934501,0.001,2722.2,2720.8,14.49383535]
[1769755935003,0.001,2722.2,2720.9,0.771]
[1769755935204,0.001,2722.2,2720.9,14.49383535]
[1769755937774,7.294308,2722.1,2720.9,0.771]
[1769755937978,0.7295308,2722.0,2720.9,0.771]
[1769755938196,4.940026,2722.1,2720.9,0.771]
[1769755938597,4.940026,2722.1,2721.0,0.771]
[1769755938914,10.246062,2722.1,2721.0,0.771]
[1769755939389,3.78815,2722.1,2721.0,0.771]
[1769755939830,2.723521,2722.1,2720.6,13.72283535]
[1769755940014,8.934329,2721.9,2720.7,0.771]
[1769755940175,8.464868,2721.9,2720.7,0.771]
[1769755940377,8.464868,2721.9,2720.2,0.002]
[1769755940688,5.000421,2721.9,2720.3,0.771]
[1769755940882,5.000421,2721.9,2720.3,14.49383535]
[1769755940883,3.101401,2721.9,2720.3,14.49383535]
[1769755941090,0.33738531,2721.8,2720.3,15.94341889]
[1769755941296,3.577872,2721.8,2720.3,15.94341889]
[1769755941797,0.1024,2721.9,2720.3,15.94341889]
[1769755941995,0.001,2722.2,2720.3,15.94341889]
[1769755942311,5.025859,2722.1,2720.3,15.94341889]
[1769755942509,0.1024,2722.0,2720.3,15.94341889]
[1769755942691,0.001,2722.2,2720.5,13.72283535]
[1769755943624,0.001,2721.9,2720.5,13.72283535]
[1769755944515,0.00210824,2723.1,2720.7,13.72283535]
[1769755944716,2.525055,2723.0,2720.7,13.72283535]
[1769755945031,0.25271632,2722.9,2720.9,13.72283535]
[1769755945229,2.224905,2723.0,2720.9,13.72283535]
[1769755945431,0.00210824,2723.1,2720.9,13.72283535]
[1769755945734,4.126041,2723.0,2720.9,14.6416185]
[1769755945938,3.512041,2723.0,2720.9,14.6416185]
[1769755946094,0.00210824,2723.1,2720.9,13.72283535]
[1769755946095,10.236251,2722.8,2720.9,13.72283535]
[1769755946302,0.1024,2722.6,2720.9,13.72283535]
[1769755946508,0.1024,2722.6,2720.5,13.53051352]
[1769755946509,6.74585712,2722.4,2720.5,13.53051352]
[1769755946730,0.1024,2722.0,2720.5,13.53051352]
[1769755946928,0.4259365,2721.9,2720.6,14.88356487]
[1769755947105,0.1024,2722.1,2720.6,14.88356487]
[1769755947299,26.658693,2722.3,2720.6,13.53051352]
[1769755947502,0.1024,2722.2,2720.6,13.53051352]
[1769755947696,0.1024,2722.6,2720.6,13.53051352]
[1769755947910,0.1024,2722.4,2720.6,13.53051352]
[1769755948108,0.1024,2722.0,2720.6,13.53051352]
[1769755948330,0.563746,2721.9,2720.7,1.35305135]
[1769755948512,0.1024,2722.1,2720.7,1.35305135]
[1769755948713,0.1024,2722.1,2720.7,14.88356487]
[1769755949937,9.33135,2722.4,2720.7,14.88356487]
[1769755950234,5.743493,2722.4,2720.7,14.88356487]
[1769755950530,0.1024,2722.3,2720.7,14.88356487]
[1769755950727,6.64345712,2722.6,2720.4,0.91898225]
[1769755950728,0.66434571,2722.6,2720.9,13.53051352]
[1769755951028,9.680483,2723.0,2720.9,13.53051352]
[1769755951235,17.85643,2722.9,2720.9,13.53051352]
[1769755951529,12.300008,2722.7,2720.9,13.53051352]
[1769755952635,11.14947,2722.7,2720.9,13.53051352]
[1769755953009,8.590908,2722.7,2720.9,13.53051352]
[1769755953327,0.8693308,2722.6,2721.1,13.53051352]
[1769755953528,0.00210824,2723.1,2721.1,13.53051352]
[1769755953733,3.812407,2723.0,2721.1,13.53051352]
[1769755953941,0.1024,2723.0,2721.1,13.53051352]
[1769755954114,0.1024,2722.8,2721.1,13.53051352]
[1769755954508,12.246229,2722.7,2721.1,13.53051352]
[1769755954844,12.038114,2722.7,2721.1,15.01887001]
[1769755955207,6.74585712,2722.8,2721.1,15.01887001]
[1769755955515,23.114729,2722.7,2721.1,15.01887001]
[1769755955727,18.141059,2722.7,2721.1,15.01887001]
[1769755956238,2.103141,2722.7,2721.1,15.01887001]
[1769755956410,0.88489981,2722.6,2721.2,14.33665659]
[1769755956616,0.001,2722.5,2721.2,14.33665659]
[1769755961541,0.001,2722.5,2721.3,12.83476959]
[1769755967712,0.00210824,2723.1,2721.3,12.83476959]
[1769755967713,0.00210824,2723.1,2721.6,12.83476959]
[1769755967991,6.83647336,2724.7,2722.5,12.83476959]
[1769755968172,6.83647336,2724.7,2722.7,12.83476959]
[1769755968354,6.74684712,2724.7,2722.7,12.83476959]
[1769755968550,6.64653428,2725.1,2722.7,13.75295778]
[1769755968756,6.64653428,2725.1,2722.7,12.83476959]
[1769755968957,0.1024,2725.0,2722.9,12.83476959]
[1769755969592,0.1024,2725.0,2723.1,12.83476959]
[1769755969791,6.64653428,2724.8,2723.1,12.83476959]
[1769755973502,6.95700879,2725.9,2723.2,12.83476959]
[1769755973722,2.025145,2725.8,2723.2,12.83476959]
[1769755973912,0.1024,2725.7,2723.2,12.83476959]
[1769755974214,0.1024,2725.4,2723.4,12.83476959]
[1769755974926,2.010648,2725.3,2723.4,12.83476959]
[1769755975130,7.05940879,2725.4,2723.4,12.83476959]
[1769755975293,0.93606834,2726.3,2723.4,13.7527141]
[1769755975294,0.1024,2725.7,2723.4,13.7527141]
[1769755975793,2.038626,2725.6,2723.4,13.7527141]
[1769755975995,0.2141026,2725.5,2723.6,13.56368587]
[1769755976190,4.182461,2725.6,2723.6,13.56368587]
[1769755976419,4.452525,2725.6,2723.6,13.56368587]
[1769755977018,2.652525,2725.6,2723.6,13.56368587]
[1769755977321,0.1024,2725.7,2723.6,14.48157562]
[1769755977487,2.890589,2726.0,2723.6,14.48157562]
[1769755977691,0.1024,2725.8,2723.8,13.56368587]
[1769755978221,4.026845,2726.0,2723.8,13.56368587]
[1769755978420,2.226845,2726.0,2723.8,13.56368587]
[1769755980448,0.019055,2726.3,2723.8,14.4815188]
[1769755980754,7.05940879,2726.1,2723.8,13.56368587]
[1769755980940,7.05940879,2726.1,2724.0,13.56368587]
[1769755980941,0.70594088,2726.0,2724.0,13.56368587]
[1769755981118,14.41141079,2725.9,2724.0,13.56368587]
[1769755981322,0.70594088,2726.0,2724.0,13.56368587]
[1769755981522,0.001,2725.8,2724.0,13.56368587]
[1769755983436,13.37138479,2725.5,2724.0,13.56368587]
[1769755983745,10.010579,2725.4,2724.0,13.56368587]
[1769755983948,5.396132,2725.3,2724.0,13.56368587]
[1769755984151,6.42,2725.4,2724.0,13.56368587]
[1769755984320,6.42,2725.4,2724.0,14.92005446]
[1769755984726,10.994104,2725.3,2724.0,13.56368587]
[1769755984936,6.42,2725.4,2724.0,13.56368587]
[1769755985255,2.34473,2725.3,2724.0,13.56368587]
[1769755985927,0.001,2725.8,2723.4,13.56368587]
[1769755985928,7.05940879,2725.0,2723.4,13.56368587]
[1769755986960,0.1024,2725.0,2723.4,13.56368587]
[1769755987255,0.001,2725.8,2723.4,14.48163401]
[1769755987427,0.001,2725.8,2724.2,13.56368587]
[1769755987622,0.001,2725.8,2724.4,13.56368587]
[1769755987845,0.001,2725.8,2724.3,14.5]
[1769755987846,0.41943836,2727.1,2724.6,13.56368587]
[1769755988044,0.1024,2727.0,2724.8,13.56368587]
[1769755988675,0.41943836,2727.1,2725.0,13.56368587]
[1769755988676,7.37743715,2727.1,2725.0,13.56368587]
[1769755988829,0.1024,2727.0,2725.0,13.56368587]
[1769755989239,6.95799879,2726.8,2725.0,13.56368587]
[1769755989546,6.95799879,2726.8,2724.9,0.77]
[1769755989547,0.1024,2726.7,2724.9,14.33368587]
[1769755990450,10.452639,2726.2,2724.9,0.77]
[1769755990756,1.0574094,2726.1,2724.9,0.77]
[1769755990932,0.121455,2726.3,2724.9,0.77]
[1769755990933,7.674916,2726.2,2724.9,0.77]
[1769755991133,6.673916,2726.2,2724.9,0.77]
[1769755991663,0.121455,2726.3,2724.9,0.77]
[1769755991664,0.1024,2725.9,2724.9,0.72]
[1769755992932,0.1024,2726.1,2724.9,0.72]
[1769755993146,0.1024,2725.9,2724.9,0.72]
[1769755993643,0.70603988,2726.0,2724.9,14.28368587]
[1769755993846,4.834454,2726.2,2724.9,0.72]
[1769755994457,0.019055,2726.3,2724.9,0.72]
[1769755994650,0.1024,2726.1,2724.9,0.72]
[1769755995570,4.306062,2726.2,2725.0,1.42836859]
[1769755995769,3.117046,2726.2,2725.0,13.56368587]
[1769755998169,0.1024,2726.1,2724.9,0.67]
[1769755998644,7.06039879,2726.1,2724.9,0.67]
[1769755998845,5.802692,2725.8,2724.9,0.14056564]
[1769755999056,0.1024,2725.6,2724.9,0.14056564]
[1769756000140,0.1024,2726.1,2724.9,0.14056564]
[1769756000780,4.645641,2726.0,2724.9,0.14056564]
[1769756001277,4.349641,2726.0,2724.9,0.14056564]
[1769756002357,0.1024,2726.1,2724.9,0.14056564]
[1769756002544,0.8188219,2726.0,2724.9,0.14056564]
[1769756002743,6.098762,2726.0,2724.9,0.14056564]
[1769756003790,3.358762,2726.0,2724.9,0.14056564]
[1769756004162,3.358762,2726.0,2724.9,13.70425151]
[1769756005791,0.1024,2725.7,2724.9,0.09056564]
[1769756005994,0.1024,2725.3,2724.2,0.002]
[1769756006196,0.1024,2725.2,2724.2,0.002]
[1769756006690,0.1024,2725.5,2724.2,0.002]
[1769756006856,6.458821,2725.4,2724.2,0.002]
[1769756007270,12.86735838,2725.4,2724.2,0.002]
[1769756007491,0.1024,2725.2,2724.2,0.002]
[1769756007687,0.1024,2725.1,2724.2,0.002]
[1769756007887,8.509756,2725.0,2724.2,0.002]
[1769756008090,0.1024,2725.1,2724.2,0.002]
[1769756008290,7.735405,2725.0,2724.2,0.002]
[1769756009413,0.1024,2725.1,2723.3,0.16660833]
[1769756009414,0.1024,2724.7,2723.3,0.16660833]
[1769756009610,7.743743,2724.5,2723.3,0.16660833]
[1769756009910,3.830292,2724.5,2723.3,0.16660833]
[1769756010082,0.90607299,2724.6,2723.3,0.16660833]
[1769756010083,5.973846,2724.6,2723.3,0.16660833]
[1769756010404,0.91733864,2725.3,2723.3,0.16660833]
[1769756010405,0.1024,2724.8,2723.3,0.16660833]
[1769756010577,4.555915,2724.5,2723.3,0.16660833]
[1769756010780,0.5682315,2724.4,2723.2,13.63771736]
[1769756011016,0.1024,2724.0,2722.9,0.002]
[1769756011222,0.1024,2723.8,2722.9,0.002]
[1769756011383,6.40457738,2724.8,2722.9,13.63971736]
[1769756011573,6.645327,2724.6,2722.9,13.63971736]
[1769756011902,0.1024,2724.1,2723.1,13.63771736]
[1769756013069,0.1024,2724.5,2723.1,13.63771736]
[1769756013282,0.1024,2724.1,2723.1,13.63771736]
[1769756014607,0.1024,2724.7,2723.1,13.63771736]
[1769756014902,0.1024,2724.1,2723.1,13.63771736]
[1769756015104,0.5436028,2724.0,2723.1,13.63771736]
[1769756015286,0.1024,2724.2,2723.1,13.63771736]
[1769756015632,7.185368,2725.6,2723.3,13.9393545]
[1769756015920,0.1024,2725.4,2723.3,13.9393545]
[1769756016118,0.001,2725.8,2723.3,13.9393545]
[1769756016119,8.276054,2725.7,2723.3,13.9393545]
[1769756016343,0.1024,2725.3,2723.5,13.9393545]
[1769756016543,0.8277054,2725.6,2723.5,13.9393545]
[1769756016544,0.1024,2725.1,2723.5,13.9393545]
[1769756016727,0.1024,2724.9,2723.5,13.9393545]
[1769756016924,0.1024,2725.0,2723.5,13.9393545]
[1769756017242,0.1024,2724.6,2723.5,13.9393545]
[1769756017553,0.83186133,2724.6,2723.6,1.541029]
[1769756017714,0.1024,2724.6,2723.6,1.541029]
[1769756018351,0.1024,2725.5,2723.6,15.4803835]
[1769756018621,8.638411,2725.3,2723.6,15.4803835]
[1769756018843,0.1024,2725.2,2723.6,15.4803835]
[1769756019027,0.1024,2725.2,2723.8,13.9393545]
[1769756019933,0.001,2725.4,2723.8,13.9393545]
[1769756020344,0.41943836,2727.1,2723.8,13.9393545]
[1769756020345,6.40457738,2727.0,2723.8,13.9393545]
[1769756020498,0.41943836,2727.1,2724.0,13.9393545]
[1769756020699,0.41943836,2727.1,2723.8,0.46815834]
[1769756020700,0.10484627,2727.1,2724.3,14.85699299]
[1769756020900,0.10484627,2727.1,2724.5,13.9393545]
[1769756021296,6.61281365,2727.1,2724.5,13.9393545]
[1769756021496,5.066041,2726.2,2724.5,13.9393545]
[1769756021810,2.977102,2726.2,2724.5,13.9393545]
[1769756022008,0.1024,2726.5,2724.5,13.9393545]
[1769756022319,2.084214,2726.2,2724.5,13.9393545]
[1769756022526,0.2103269,2726.1,2724.7,13.9393545]
[1769756022723,0.1024,2727.0,2724.7,13.9393545]
[1769756023118,6.51041365,2727.1,2724.7,14.856879]
[1769756023119,0.10484627,2727.1,2724.7,14.856879]
[1769756023502,0.10484627,2727.1,2724.7,13.9393545]
[1769756023941,0.20724627,2727.1,2724.7,13.9393545]
[1769756024651,8.442069,2726.2,2724.7,13.9393545]
[1769756025154,2.622154,2726.2,2724.7,13.9393545]
[1769756025337,0.2641209,2726.1,2724.9,13.9393545]
[1769756025660,2.773548,2726.2,2724.9,13.9393545]
[1769756025806,0.20724627,2727.1,2724.9,13.9393545]
[1769756026739,0.1024,2726.9,2724.9,13.9393545]
[1769756027238,0.1024,2726.9,2724.9,14.7093545]
[1769756031022,0.1024,2726.9,2725.1,13.9393545]
[1769756031220,0.1024,2726.9,2725.3,13.9393545]
[1769756032266,0.10484627,2727.1,2725.3,13.9393545]
[1769756033362,0.10484627,2727.1,2725.3,14.85667663]
[1769756033564,0.10484627,2727.1,2725.3,13.9393545]
[1769756033770,10.23594,2726.8,2725.3,15.4726835]
[1769756034054,0.1024,2726.9,2725.3,15.4726835]
[1769756034241,0.10484627,2727.1,2725.3,15.4726835]
[1769756034841,0.1024,2726.9,2725.3,15.4726835]
[1769756035042,0.1024,2726.9,2725.5,13.9393545]
[1769756035844,0.10484627,2727.1,2725.5,13.9393545]
[1769756039858,0.1024,2726.9,2725.5,13.9393545]
[1769756041056,0.1024,2726.9,2725.6,12.89303223]
[1769756041264,6.42542183,2726.9,2725.4,1.54726835]
[1769756041464,17.43062683,2726.7,2725.2,12.89303223]
[1769756041662,3.38237,2726.6,2725.2,12.89303223]